bitfinex-derivatives/quotes_ETHF0:USTF0_20250606
["timestamp","ask_amount","ask_price","bid_price","bid_amount"]
[1749226960040,2.614,2513.4,2513.0,0.79524]
[1749226960041,0.79522,2513.1,2513.0,0.79524]
[1749226960250,2.614,2513.4,2512.7,6.50452]
[1749226960446,0.79514,2513.3,2513.2,0.79516]
[1749226960642,2.08894,2513.3,2513.2,0.79516]
[1749226961137,1.3202,2513.4,2513.3,0.79514]
[1749226961138,2.11532,2513.4,2513.3,0.79514]
[1749226961339,1.2938,2513.6,2513.3,3.2078]
[1749226961544,0.795,2513.8,2513.4,1.98778]
[1749226961740,2.6644,2514.0,2513.3,3.2078]
[1749226962049,0.79511,2513.5,2513.4,0.00597419]
[1749226963041,5.79511,2513.5,2513.4,0.00597419]
[1749226963346,7.84241,2513.5,2513.4,0.00597419]
[1749226965139,1.988,2513.2,2512.6,0.6309]
[1749226965341,1.98826,2512.8,2512.2,5.022]
[1749226965543,0.79544,2512.4,2512.3,0.79544]
[1749226965745,0.79547,2512.3,2512.2,0.79547]
[1749226965945,1.98841,2512.6,2512.1,3.2078]
[1749226966144,0.79549,2512.2,2512.1,4.00926419]
[1749226966648,0.86682351,2512.2,2512.1,3.21377419]
[1749226966946,0.86682351,2512.2,2512.1,0.00597419]
[1749226967348,0.86682351,2512.2,2512.1,0.80149419]
[1749226968145,0.86682351,2512.2,2512.1,0.00597419]
[1749226968346,0.07133351,2512.2,2512.1,0.80149419]
[1749226970844,0.07133351,2512.2,2512.1,4.00929419]
[1749226971053,3.51e-06,2512.2,2512.1,9.00929419]
[1749226972459,0.00597419,2512.6,2512.5,0.79539]
[1749226972752,0.00597419,2512.6,2512.5,9.02519]
[1749226975058,4.19e-06,2512.6,2512.5,14.02519]
[1749226975651,4.19e-06,2512.6,2512.5,5.36369]
[1749226975952,4.19e-06,2512.6,2512.5,10.38469]
[1749226976146,4.19e-06,2512.6,2512.5,5.36369]
[1749226976353,4.19e-06,2512.6,2512.5,10.38469]
[1749226976650,4.19e-06,2512.6,2512.5,5.36369]
[1749226977049,4.19e-06,2512.6,2512.5,4.00319]
[1749226978266,4.19e-06,2512.6,2512.5,0.79539]
[1749226978558,0.79536419,2512.6,2512.5,0.79539]
[1749226978955,4.19e-06,2512.6,2512.5,0.79539]
[1749226979150,4.19e-06,2512.6,2512.5,4.00319]
[1749226980557,4.19e-06,2512.6,2512.5,5.30069]
[1749226984270,4.19e-06,2512.6,2512.5,10.95609]
[1749226984561,0.79488,2514.2,2514.1,0.79485]
[1749226984865,0.79494,2514.0,2513.9,0.79491]
[1749226985262,0.87476485,2514.0,2513.9,0.79491]
[1749226985559,2.12431,2514.1,2514.0,0.79492]
[1749226985758,2.99883693,2514.1,2514.0,0.79492]
[1749226985963,0.79495,2514.0,2513.9,0.79492]
[1749226986255,0.6666,2514.3,2514.2,0.79486]
[1749226986563,2.87080709,2514.3,2514.2,0.79486]
[1749226986761,0.79488,2514.2,2514.1,0.79487]
[1749226986960,2.92798709,2514.2,2514.1,0.79487]
[1749226987262,2.13310709,2514.2,2514.1,0.79487]
[1749226987659,0.79492,2514.1,2514.0,0.7949]
[1749226987861,0.79492,2514.1,2513.7,1.99350419]
[1749226987862,1.2583,2514.1,2513.7,0.00597419]
[1749226988065,3.2078,2513.9,2513.8,0.79498]
[1749226988252,0.88424637,2513.9,2513.8,0.79498]
[1749226988759,18.746,2514.5,2513.7,0.00597419]
[1749226988760,3.2078,2514.7,2514.6,0.79473]
[1749226988959,2.5571,2515.2,2514.5,3.2078]
[1749226989264,0.7946,2515.0,2514.5,3.2078]
[1749226989470,0.79473,2514.6,2514.5,3.2078]
[1749226989654,1.98691,2514.5,2513.9,0.6296]
[1749226989961,0.79498,2513.8,2513.7,0.00597419]
[1749226990453,7.87188867,2513.8,2513.2,0.79516]
[1749226990662,3.2078,2513.5,2512.8,10.8307]
[1749226990860,3.2078,2513.5,2513.3,0.79512]
[1749226991160,0.79518,2513.2,2512.8,9.5349]
[1749226991363,0.79516,2513.3,2513.1,0.79518]
[1749226991671,0.79522,2513.1,2512.9,0.79524]
[1749226991961,0.00597419,2513.3,2513.2,0.79517]
[1749226993854,0.00597419,2513.3,2513.2,2.06587]
[1749226994468,0.00597419,2513.3,2513.2,0.79517]
[1749226996165,0.79517,2513.2,2512.7,7.00527419]
[1749226996558,1.355,2513.2,2513.1,0.79519]
[1749226996760,1.355,2513.2,2513.0,0.79521]
[1749226996959,1.355,2513.2,2513.1,0.79521]
[1749226997160,2.15017,2513.2,2513.1,0.79521]
[1749226997362,1.355,2513.2,2513.1,0.79521]
[1749226997759,2.15017,2513.2,2513.1,0.79521]
[1749226997964,1.355,2513.2,2513.1,0.79521]
[1749226998166,2.15017,2513.2,2513.1,0.79521]
[1749226998372,1.355,2513.2,2513.1,0.79521]
[1749226998876,0.00597419,2513.3,2513.2,0.79517]
[1749226999764,0.80111419,2513.3,2513.2,0.79517]
[1749227000369,0.79519,2513.2,2513.1,0.79517]
[1749227000569,2.13239,2513.2,2513.1,0.79517]
[1749227000964,1.3372,2513.2,2513.1,0.79517]
[1749227001172,0.07133351,2513.2,2513.1,0.79517]
[1749227001561,0.86650351,2513.2,2513.1,0.79517]
[1749227001867,0.79524,2513.0,2512.9,3.2078]
[1749227002172,0.79524,2513.0,2512.9,4.00305]
[1749227002563,2.08894,2513.0,2512.9,4.00305]
[1749227002766,7.08894,2513.0,2512.9,3.2078]
[1749227002967,0.7953,2512.8,2512.7,0.00597419]
[1749227003271,1.6811195,2512.8,2512.7,0.00597419]
[1749227003463,6.6811195,2512.8,2512.7,0.00597419]
[1749227003668,7.9748195,2512.8,2512.7,0.00597419]
[1749227003966,7.9748195,2512.8,2511.9,3.2078]
[1749227003967,0.79547,2512.4,2511.9,3.2078]
[1749227004167,1.2937,2512.3,2511.9,3.2078]
[1749227004367,1.44131,2512.2,2512.1,0.79549]
[1749227005866,0.6458,2512.2,2512.1,0.79549]
[1749227006468,1.44129,2512.2,2512.1,0.79549]
[1749227006977,0.79555,2512.0,2511.9,3.21377419]
[1749227007671,0.6458,2512.2,2512.1,0.79552]
[1749227008872,1.44129,2512.2,2512.1,0.79552]
[1749227009172,0.6458,2512.2,2512.1,0.79552]
[1749227010466,5.013,2512.5,2512.2,1.98872]
[1749227010673,5.013,2512.5,2512.4,0.79543]
[1749227010869,5.80839,2512.5,2512.4,0.79543]
[1749227011170,5.013,2512.5,2512.4,0.79543]
[1749227011374,1.2777,2512.8,2512.7,0.79533]
[1749227011571,0.6338,2512.9,2512.8,0.7953]
[1749227011774,0.07133351,2513.2,2512.8,0.7953]
[1749227011775,0.07133351,2513.2,2513.1,0.7952]
[1749227014375,0.07133351,2513.2,2513.1,2.1637]
[1749227014581,0.07133351,2513.2,2513.1,7.1957]
[1749227015283,1.369,2514.0,2513.9,0.79495]
[1749227015581,0.6404,2514.1,2514.0,0.79492]
[1749227015769,6.46629,2514.1,2514.0,0.79492]
[1749227016275,24.07,2514.6,2514.2,0.79486]
[1749227016477,0.00597419,2514.3,2514.2,0.79486]
[1749227017784,4.19e-06,2514.3,2514.2,0.79486]
[1749227017977,4.19e-06,2514.3,2514.2,5.79486]
[1749227018783,1.294,2515.3,2515.2,0.79454]
[1749227019174,3.2078,2515.4,2515.3,0.79451]
[1749227020085,0.79449,2515.4,2515.3,0.7945]
[1749227020279,0.79452,2515.3,2515.1,0.00597419]
[1749227020477,0.79454,2515.2,2515.1,0.00597419]
[1749227020682,2.07134,2515.2,2515.1,0.00597419]
[1749227021383,6.3058,2515.2,2515.1,0.80054419]
[1749227021579,1.2768,2515.2,2515.1,0.80054419]
[1749227021784,0.79454,2515.2,2515.1,0.00597419]
[1749227023078,7.18824,2515.2,2515.1,0.00597419]
[1749227023276,0.79486,2514.2,2514.1,1.47297]
[1749227023481,5.029,2514.5,2514.0,3.8732]
[1749227023688,5.029,2514.5,2514.4,0.79479]
[1749227024182,5.82278,2514.5,2514.2,0.00597419]
[1749227024378,5.028,2514.5,2514.2,0.00597419]
[1749227024582,5.028,2514.5,2514.4,0.79479]
[1749227024978,5.82276,2514.5,2514.4,0.79479]
[1749227025178,0.79476,2514.6,2514.5,0.79475]
[1749227026180,4.00849419,2514.7,2514.6,0.79473]
[1749227026381,0.79474,2514.6,2514.5,0.79473]
[1749227027080,0.80069419,2514.7,2514.6,0.79473]
[1749227027273,5.82867419,2514.7,2514.6,0.79473]
[1749227027480,0.80067419,2514.7,2514.6,0.79473]
[1749227027782,0.80070419,2514.7,2514.6,0.79473]
[1749227028381,0.79483,2514.3,2514.2,0.00597419]
[1749227028580,9.03063,2514.3,2514.2,0.00597419]
[1749227030483,9.03063,2514.3,2514.2,0.80083419]
[1749227031389,4.00263,2514.3,2514.2,0.80083419]
[1749227031787,3.2078,2514.3,2514.2,0.80083419]
[1749227032485,5.028,2514.5,2514.2,0.80083419]
[1749227032486,0.8720177,2514.7,2514.6,0.79473]
[1749227032984,0.0773077,2514.7,2514.2,3.21377419]
[1749227033188,0.79482,2514.4,2514.3,0.79479]
[1749227033486,0.79479,2514.5,2514.4,0.79476]
[1749227033983,0.0773077,2514.7,2514.2,0.00597419]
[1749227033984,0.79477,2514.6,2514.5,0.79473]
[1749227034289,0.8720077,2514.7,2514.6,0.79473]
[1749227034990,0.0773077,2514.7,2514.6,0.79473]
[1749227035189,0.79482,2514.4,2514.2,0.00597419]
[1749227035490,0.79479,2514.5,2514.4,0.79476]
[1749227035689,0.79482,2514.4,2514.3,0.7948]
[1749227035990,0.79482,2514.3,2514.2,0.00597419]
[1749227036290,0.79482,2514.3,2514.2,0.80083419]
[1749227036990,0.79482,2514.3,2514.2,0.00597419]
[1749227037392,2.73242,2514.3,2514.2,0.00597419]
[1749227038091,2.73242,2514.3,2514.2,0.80083419]
[1749227038292,2.73242,2514.3,2514.2,0.00597419]
[1749227041189,7.83385844,2514.3,2513.3,4.0029]
[1749227041395,7.83385844,2514.3,2513.2,0.6596]
[1749227041396,1.98746,2513.8,2513.2,0.6596]
[1749227041692,1.98746,2513.8,2513.5,0.79505]
[1749227041693,0.79508,2513.6,2513.5,0.79505]
[1749227043395,0.79511,2513.5,2513.4,0.79509]
[1749227044797,0.79506,2513.6,2513.5,0.79505]
[1749227045598,0.79511,2513.4,2513.3,0.80108419]
[1749227045895,0.86641351,2513.6,2513.5,0.79508]
[1749227047200,0.07133351,2513.6,2513.5,0.79508]
[1749227048892,0.79511,2513.4,2513.3,4.00889419]
[1749227049698,0.7951,2513.5,2513.4,0.79508]
[1749227050388,0.07133351,2513.6,2513.5,0.79508]
[1749227051595,24.054,2514.6,2514.2,0.79486]
[1749227051799,0.8975893,2514.5,2514.4,0.79479]
[1749227052000,29.85173,2514.6,2514.5,0.79476]
[1749227052203,29.057,2514.6,2514.5,0.79476]
[1749227052507,29.95483454,2514.6,2514.5,0.79476]
[1749227052698,29.057,2514.6,2514.5,0.79476]
[1749227052899,24.054,2514.6,2514.5,0.79476]
[1749227054199,24.84873,2514.6,2514.5,0.79476]
[1749227054403,24.054,2514.6,2514.5,0.79476]
[1749227054796,0.00597419,2514.7,2514.6,0.79473]
[1749227055401,0.79473,2514.6,2514.5,5.9]
[1749227055607,6.5371398,2514.6,2513.9,3.2078]
[1749227055902,0.79486,2514.3,2514.2,0.79483]
[1749227056400,19.49981,2514.4,2514.3,0.79482]
[1749227056600,25.85121,2514.4,2514.3,0.79482]
[1749227056800,0.79485,2514.3,2514.2,0.79483]
[1749227057202,2.14325,2514.3,2514.2,0.79483]
[1749227057802,0.79488,2514.2,2514.1,0.79487]
[1749227058101,1.3484,2514.3,2514.2,0.79486]
[1749227058302,2.14322,2514.3,2514.2,0.79486]
[1749227059402,0.79489,2514.2,2514.1,0.79487]
[1749227059805,0.79492,2514.0,2513.9,4.00274]
[1749227060002,0.79508,2513.5,2513.4,1.44047]
[1749227060203,0.79511,2513.4,2513.3,0.80109419]
[1749227060396,0.79511,2513.4,2513.3,0.00597419]
[1749227060797,2.18391,2513.4,2513.3,0.00597419]
[1749227061004,0.79529,2512.9,2512.8,0.79528]
[1749227061216,0.79522,2513.1,2513.0,0.79521]
[1749227061509,5.002,2513.1,2513.0,0.79521]
[1749227062004,2.06767419,2513.3,2513.2,0.79517]
[1749227062204,7.06967419,2513.3,2513.1,0.79517]
[1749227062397,0.79519,2513.2,2513.1,0.79517]
[1749227062802,0.79523,2513.1,2513.0,0.79521]
[1749227063200,1.49008,2513.2,2513.1,0.7952]
[1749227063704,10.89067,2513.2,2512.8,0.00597419]
[1749227063903,4.00307,2512.9,2512.8,0.00597419]
[1749227064108,9.91046493,2512.9,2512.8,0.00597419]
[1749227064813,4.11219493,2512.9,2512.8,0.00597419]
[1749227065007,1.3255,2513.1,2512.8,0.00597419]
[1749227065206,5.003,2513.0,2512.9,0.79527]
[1749227066909,5.79824,2513.0,2512.9,0.79527]
[1749227067211,5.79824,2513.0,2512.8,0.00597419]
[1749227067212,0.79527,2512.9,2512.8,0.00597419]
[1749227067508,3.04377051,2512.9,2512.8,0.00597419]
[1749227068410,0.6949,2513.2,2513.1,0.7952]
[1749227068617,5.6989,2513.2,2513.1,0.7952]
[1749227069110,7.057,2513.2,2513.1,0.7952]
[1749227069505,7.85217,2513.2,2513.1,0.7952]
[1749227069707,0.79524,2513.1,2513.0,0.79524]
[1749227069907,0.79527,2512.9,2512.8,0.00597419]
[1749227070608,2.15337,2512.9,2512.8,0.00597419]
[1749227070910,2.15337,2512.9,2512.8,0.80127419]
[1749227071210,24.51927,2512.9,2512.8,0.80127419]
[1749227071613,23.724,2512.9,2512.8,0.80127419]
[1749227071814,24.51927,2512.9,2512.8,0.00597419]
[1749227072009,25.90277,2512.9,2512.8,0.00597419]
[1749227073422,3.2078,2513.0,2512.8,0.00597419]
[1749227073720,0.6949,2513.2,2513.1,0.7952]
[1749227073721,2.0784,2513.2,2513.1,0.7952]
[1749227073905,24.4099,2513.2,2513.1,0.7952]
[1749227074106,0.79525,2513.1,2513.0,0.79521]
[1749227074315,0.79527,2513.0,2512.9,0.79525]
[1749227075414,0.79523,2513.1,2513.0,0.7952]
[1749227075607,3.21377419,2513.3,2512.8,0.00597419]
[1749227075811,8.21477419,2513.3,2513.2,0.79517]
[1749227076008,9.00991419,2513.3,2513.2,0.79517]
[1749227077416,0.79524,2513.1,2513.0,0.79521]
[1749227077718,0.79527,2512.9,2512.8,0.00597419]
[1749227077919,5.79627,2512.9,2512.8,0.00597419]
[1749227078416,7.15580351,2512.9,2512.8,0.00597419]
[1749227079218,7.15580351,2512.9,2512.8,0.80127419]
[1749227079524,5.86760351,2512.9,2512.8,0.80127419]
[1749227079709,0.86660351,2512.9,2512.8,0.00597419]
[1749227079913,26.55730351,2512.9,2512.8,0.00597419]
[1749227080710,2.84330351,2512.9,2512.8,0.00597419]
[1749227080915,26.55130351,2512.9,2512.8,0.00597419]
[1749227081216,26.55130351,2512.9,2512.8,0.80127419]
[1749227081416,24.46783351,2512.9,2512.8,0.80127419]
[1749227081613,25.26310351,2512.9,2512.8,0.80127419]
[1749227082713,25.26310351,2512.9,2512.8,0.00597419]
[1749227083813,26.60900351,2512.9,2512.8,0.00597419]
[1749227084119,2.90100351,2512.9,2512.8,0.00597419]
[1749227084416,26.59900351,2512.9,2512.8,0.00597419]
[1749227085114,0.79543,2512.5,2512.3,3.2078]
[1749227085317,0.79543,2512.5,2512.4,0.79541]
[1749227085515,5.79643,2512.5,2512.4,0.79541]
[1749227086618,5.001,2512.6,2512.3,3.2078]
[1749227086923,19.57762351,2512.9,2512.8,0.7953]
[1749227087123,0.07133351,2512.9,2512.8,0.7953]
[1749227087324,0.79521,2513.1,2513.0,0.79524]
[1749227088521,1.68494943,2513.1,2513.0,0.79524]
[1749227088717,0.79529,2512.9,2512.7,1.3208]
[1749227088915,6.2832,2513.2,2512.7,3.30913]
[1749227089115,5.001,2513.2,2512.9,1.98815]
[1749227089427,0.00597419,2513.3,2513.2,0.79517]
[1749227089626,0.89668759,2513.3,2513.2,0.79517]
[1749227090025,0.00597419,2513.3,2513.2,0.79517]
[1749227091830,0.80111419,2513.3,2513.2,0.79517]
[1749227092125,0.00597419,2513.3,2513.2,0.79517]
[1749227096426,0.80111419,2513.3,2513.2,0.79517]
[1749227096827,0.00597419,2513.3,2513.2,0.79517]
[1749227099131,0.80111419,2513.3,2513.2,0.79517]
[1749227099639,0.86653351,2513.1,2513.0,0.79524]
[1749227100427,0.79527,2513.0,2512.9,0.79524]
[1749227100734,0.79537,2512.7,2512.6,0.79533]
[1749227101028,0.79539,2512.6,2512.5,0.79535]
[1749227101235,0.79536,2512.7,2512.6,0.79533]
[1749227101731,18.653,2512.8,2512.7,0.79533]
[1749227101940,23.653,2512.8,2512.7,0.79533]
[1749227103236,23.653,2512.8,2512.7,2.08773]
[1749227103435,0.7953,2512.8,2512.7,0.79533]
[1749227103937,0.79539,2512.6,2512.5,0.79535]
[1749227104940,0.79539,2512.5,2512.4,0.79539]
[1749227105236,0.79539,2512.5,2512.3,0.6576]
[1749227105237,0.79543,2512.4,2512.3,1.45303]
[1749227105433,0.79546,2512.3,2512.2,0.00597419]
[1749227105641,7.7657,2512.5,2512.4,0.79543]
[1749227105943,6.5116427,2512.5,2512.4,0.79543]
[1749227106236,0.79537,2512.6,2512.5,0.79536]
[1749227106440,23.69133351,2512.8,2512.7,0.79533]
[1749227106847,0.79536,2512.7,2512.6,0.79533]
[1749227107539,0.79536,2512.6,2512.5,1.47285]
[1749227107940,0.79535,2512.7,2512.6,0.79533]
[1749227108339,0.79539,2512.5,2512.4,5.9]
[1749227108546,0.79546,2512.3,2512.2,0.00597419]
[1749227108748,5.75346,2512.3,2512.2,0.00597419]
[1749227109044,5.75346,2512.3,2512.2,0.80146419]
[1749227109248,5.75346,2512.3,2512.2,0.00597419]
[1749227109540,7.06906,2512.3,2512.2,0.00597419]
[1749227109736,7.95908815,2512.3,2512.2,0.00597419]
[1749227109936,0.79564,2511.8,2511.7,0.79561]
[1749227110139,1.98883,2512.1,2511.3,10.79612]
[1749227110140,4.958,2511.9,2511.4,0.6549]
[1749227110330,0.79577,2511.4,2511.3,0.79575]
[1749227110538,18.675,2511.4,2510.9,2.5598]
[1749227110840,18.675,2511.4,2511.1,0.79582]
[1749227110841,0.79584,2511.2,2511.1,0.79582]
[1749227111044,20.15033419,2511.4,2511.3,0.79577]
[1749227111540,19.35457419,2511.4,2511.3,0.79577]
[1749227111739,0.00597419,2511.4,2511.3,0.79577]
[1749227112639,0.00597419,2511.4,2510.9,1.30177419]
[1749227112836,0.79587,2511.0,2510.9,0.00597419]
[1749227113038,19.51987,2511.0,2510.9,0.80187419]
[1749227113231,19.51987,2511.0,2510.9,0.00597419]
[1749227113432,0.79587,2511.0,2510.9,0.00597419]
[1749227113639,0.79607,2510.4,2510.3,0.79607]
[1749227113941,3.2078,2510.7,2510.6,0.796]
[1749227114133,8.1678,2510.7,2510.6,0.796]
[1749227116342,9.514,2510.7,2510.6,0.796]
[1749227116649,0.79601,2510.6,2510.5,0.79601]
[1749227116848,0.79603,2510.5,2510.4,0.00398279]
[1749227117048,1.3532,2510.6,2510.4,0.00398279]
[1749227117242,1.3532,2510.6,2510.5,0.79603]
[1749227117448,3.4367,2510.6,2510.5,0.79603]
[1749227117647,0.79603,2510.5,2510.4,0.80001279]
[1749227117849,2.08353,2510.5,2510.4,0.80001279]
[1749227118044,2.08353,2510.5,2510.4,0.00398279]
[1749227118242,1.2875,2510.5,2510.4,0.00398279]
[1749227118443,6.3142,2510.6,2510.5,0.79603]
[1749227118650,5.6522,2510.6,2510.5,0.79603]
[1749227119547,4.961,2510.6,2510.5,0.79603]
[1749227122440,0.79594,2510.8,2510.5,0.79603]
[1749227122642,4.961,2510.9,2510.6,1.98997]
[1749227122842,5.7569,2510.9,2510.8,0.79593]
[1749227123143,5.7569,2510.9,2510.6,1.98997]
[1749227123144,0.79597,2510.8,2510.7,0.79595]
[1749227123345,21.44459,2511.0,2510.9,0.7959]
[1749227123544,25.11909,2511.0,2510.9,0.7959]
[1749227124045,26.38829,2511.0,2510.9,0.7959]
[1749227124442,0.6359,2511.2,2511.1,0.79584]
[1749227124648,6.39371,2511.2,2511.1,0.79584]
[1749227124954,0.79587,2511.0,2510.9,0.79587]
[1749227125554,1.9051,2511.2,2511.1,0.79584]
[1749227125747,47.774,2511.3,2511.2,0.79581]
[1749227125954,29.033,2511.3,2511.2,0.79581]
[1749227126153,0.00597419,2511.4,2511.3,0.79577]
[1749227128761,0.80171419,2511.4,2511.3,0.79577]
[1749227129157,0.00597419,2511.4,2511.3,0.79577]
[1749227130062,0.00597419,2511.4,2511.3,4.00357]
[1749227130267,24.085,2512.2,2511.3,13.1698]
[1749227130450,8.8253,2512.3,2512.2,0.79549]
[1749227130650,0.79552,2512.2,2512.1,0.79549]
[1749227131654,0.00597419,2512.4,2512.1,0.79549]
[1749227131655,0.00597419,2512.4,2512.3,0.79546]
[1749227131861,4.96797419,2512.4,2512.3,0.79546]
[1749227132162,4.96797419,2512.4,2512.3,1.43966]
[1749227133660,5.76340419,2512.4,2512.3,1.43966]
[1749227133959,4.96797419,2512.4,2512.3,1.43966]
[1749227134661,5.76340419,2512.4,2512.3,0.6442]
[1749227134857,5.76340419,2512.4,2512.3,1.43966]
[1749227135364,4.96797419,2512.4,2512.3,1.43966]
[1749227135956,0.00597419,2512.4,2512.3,2.72286]
[1749227137060,0.00597419,2512.4,2512.3,8.62286]
[1749227137255,0.80140419,2512.4,2512.3,8.62286]
[1749227137455,0.80140419,2512.4,2512.3,7.33966]
[1749227137860,0.80140419,2512.4,2512.3,5.9]
[1749227138561,0.80140419,2512.4,2512.3,6.69546]
[1749227139659,0.80140419,2512.4,2512.3,5.9]
[1749227141963,0.80140419,2512.4,2512.3,6.69546]
[1749227142267,0.00597419,2512.4,2512.3,6.69546]
[1749227142660,0.80140419,2512.4,2512.3,5.9]
[1749227142865,0.79546,2512.3,2512.2,4.00327]
[1749227143967,0.00597419,2512.4,2512.3,0.79546]
[1749227144360,0.00597419,2512.4,2512.3,2.09576]
[1749227145162,0.00597419,2512.4,2512.3,7.09576]
[1749227145364,0.00597419,2512.4,2512.3,12.99576]
[1749227145365,4.19e-06,2512.4,2512.3,12.99576]
[1749227146272,0.0713377,2512.4,2512.3,12.99576]
[1749227146465,0.79517,2513.2,2513.1,0.79518]
[1749227146668,3.2078,2513.3,2512.8,3.2078]
[1749227146873,0.79526,2513.0,2512.9,0.79523]
[1749227147072,0.79522,2513.1,2513.0,0.7952]
[1749227147478,0.00597419,2513.3,2513.2,0.79514]
[1749227148760,0.00597419,2513.3,2513.2,2.05534]
[1749227150172,4.19e-06,2513.3,2513.2,2.05534]
[1749227150769,0.6953,2514.4,2514.3,0.79482]
[1749227151371,0.6693,2514.6,2514.1,5.19502]
[1749227151572,0.79478,2514.5,2514.4,0.79477]
[1749227152075,1.46404,2514.6,2514.5,0.79476]
[1749227152281,0.6693,2514.6,2514.2,0.00597419]
[1749227152572,0.79482,2514.4,2514.3,0.7948]
[1749227152970,2.78745,2514.6,2514.5,0.79476]
[1749227153367,0.79481,2514.4,2514.3,0.79481]
[1749227153567,0.79482,2514.3,2514.2,0.80080419]
[1749227153768,0.79482,2514.3,2514.2,0.00597419]
[1749227153976,0.795,2513.8,2513.7,0.795]
[1749227154178,0.79497,2513.9,2513.8,0.79496]
[1749227154984,1.3589,2513.9,2513.6,0.00597419]
[1749227155273,1.9905,2513.9,2513.6,0.00597419]
[1749227155474,0.79501,2513.7,2513.6,0.00597419]
[1749227158578,0.79513,2513.4,2513.0,1.9881]
[1749227158783,0.79518,2513.3,2513.2,0.79516]
[1749227158971,0.79518,2513.3,2512.8,3.2078]
[1749227158972,0.79521,2513.2,2512.8,3.2078]
[1749227159173,0.79527,2513.0,2512.9,0.79524]
[1749227159682,0.79523,2513.1,2513.0,0.79521]
[1749227159982,0.79527,2513.0,2512.9,0.79525]
[1749227160475,0.79527,2513.0,2512.7,1.32617419]
[1749227160476,8.28593,2513.1,2512.7,0.00597419]
[1749227160677,0.79529,2512.9,2512.8,0.79526]
[1749227160866,0.79526,2513.0,2512.9,0.79524]
[1749227161077,2.10116,2513.0,2512.9,0.79524]
[1749227162376,5.6458,2513.1,2513.0,0.79524]
[1749227162377,0.6538,2513.1,2513.0,0.79524]
[1749227162572,1.449,2513.1,2513.0,0.79524]
[1749227162974,0.00597419,2513.2,2513.1,0.7952]
[1749227163175,0.00597419,2513.2,2513.1,4.003]
[1749227168377,0.00597419,2513.2,2513.1,0.7952]
[1749227169775,0.00597419,2513.2,2513.1,4.003]
[1749227170974,0.00597419,2513.2,2513.1,5.2631]
[1749227172485,0.00597419,2513.2,2513.1,11.1631]
[1749227173278,3.864,2513.9,2513.1,19.34392]
[1749227173478,6.884,2514.3,2513.9,0.79495]
[1749227173687,5.6238,2514.3,2514.2,0.49659075]
[1749227174171,0.6328,2514.3,2514.2,0.49659075]
[1749227174686,0.65847419,2514.5,2514.4,0.79479]
[1749227174884,0.00597419,2514.5,2514.4,0.79479]
[1749227175586,0.79482,2514.4,2514.3,0.7948]
[1749227176184,1.89737419,2514.5,2514.4,0.79479]
[1749227176485,0.63877419,2514.5,2514.4,0.79479]
[1749227176974,1.43353419,2514.5,2514.4,0.79479]
[1749227177176,0.79481,2514.4,2514.3,0.79479]
[1749227178587,2.10211,2514.4,2514.3,0.79479]
[1749227179081,1.3073,2514.4,2514.3,0.79479]
[1749227179480,1.43355419,2514.5,2514.4,0.79479]
[1749227179681,0.00597419,2514.5,2514.4,0.79479]
[1749227179980,4.19e-06,2514.5,2514.4,11.69479]
[1749227180684,4.19e-06,2514.5,2514.4,16.68479]
[1749227183085,4.19e-06,2514.5,2514.4,18.71159]
[1749227184083,4.19e-06,2514.5,2514.4,13.71159]
[1749227184490,4.19e-06,2514.5,2514.4,18.71159]
[1749227185481,4.19e-06,2514.5,2514.4,13.72159]
[1749227185682,4.19e-06,2514.5,2514.4,18.71059]
[1749227187483,4.19e-06,2514.5,2514.4,13.71059]
[1749227189087,4.19e-06,2514.5,2514.4,18.71059]
[1749227189484,4.19e-06,2514.5,2514.4,13.70959]
[1749227190191,4.19e-06,2514.5,2514.4,18.70959]
[1749227191482,4.19e-06,2514.5,2514.4,13.72159]
[1749227191678,4.19e-06,2514.5,2514.4,13.70959]
[1749227192884,4.19e-06,2514.5,2514.4,8.72159]
[1749227193184,4.19e-06,2514.5,2514.4,12.37009]
[1749227195086,0.0713377,2514.5,2514.4,12.37009]
[1749227196381,1.9161,2515.1,2515.0,0.7946]
[1749227198791,0.6504,2515.1,2515.0,0.7946]
[1749227201100,6.44497,2515.1,2515.0,0.7946]
[1749227201397,0.79463,2514.9,2514.8,5.9]
[1749227201592,0.79463,2514.9,2514.4,5.9]
[1749227201593,0.79476,2514.5,2514.4,5.9]
[1749227201795,1.98699,2514.4,2514.0,0.00597419]
[1749227202097,0.79489,2514.1,2514.0,0.00597419]
[1749227202486,2.10627,2514.2,2514.1,0.79489]
[1749227202998,6.3114,2514.2,2514.1,0.79489]
[1749227203797,2.10626,2514.2,2514.1,0.79489]
[1749227203997,7.10626,2514.2,2514.1,0.79489]
[1749227204499,2.10626,2514.2,2514.1,0.79489]
[1749227204698,0.79489,2514.1,2514.0,0.00597419]
[1749227204900,2.10629,2514.1,2514.0,0.00597419]
[1749227205390,1.3114,2514.1,2514.0,0.80089419]
[1749227205586,2.10629,2514.1,2514.0,0.80089419]
[1749227205795,1.3114,2514.1,2514.0,0.80089419]
[1749227206193,2.10629,2514.1,2514.0,0.80089419]
[1749227206400,1.3114,2514.1,2514.0,0.80089419]
[1749227207795,0.6278,2514.3,2514.2,0.79486]
[1749227208794,1.8924,2514.3,2514.2,0.79486]
[1749227211100,0.6426,2514.4,2514.3,0.79482]
[1749227212202,1.43739,2514.4,2514.3,0.79482]
[1749227212403,1.9192,2514.4,2514.3,0.79482]
[1749227212905,2.71399,2514.4,2514.3,0.79482]
[1749227213108,1.9192,2514.4,2514.3,0.79482]
[1749227215100,2.71399,2514.4,2514.3,0.79482]
[1749227215997,0.79489,2514.2,2514.1,0.79486]
[1749227216305,0.86622351,2514.1,2514.0,0.80089419]
[1749227216695,0.86622351,2514.1,2514.0,0.00597419]
[1749227216901,0.07133351,2514.1,2514.0,0.80089419]
[1749227217404,1.36883351,2514.1,2514.0,0.80089419]